[Event "*** Titled Tuesday 3|2 Blitz"]
[Site "Chess.com"]
[Date "2016.10.04"]
[Round "7"]
[White "Kouzari"]
[Black "cassoulet"]
[Result "1-0"]
[WhiteElo "2430"]
[BlackElo "2290"]
[TimeControl "180+2"]
[EndTime "12:26:40 PDT"]
[Termination "Kouzari won by resignation"]

1. e4 {[%clk 0:03:00.9]} 1... c5 {[%clk 0:03:00.4]} 2. c3 {[%clk 0:02:59.2]}
2... d6 {[%clk 0:03:01.9]} 3. d4 {[%clk 0:02:58.4]} 3... Nf6 {[%clk 0:03:03.4]}
4. Bd3 {[%clk 0:02:46.8]} 4... g6 {[%clk 0:03:02.7]} 5. dxc5 {[%clk 0:02:41.9]}
5... dxc5 {[%clk 0:03:01]} 6. e5 {[%clk 0:02:43.5]} 6... Ng4 {[%clk 0:02:58.4]}
7. Nf3 {[%clk 0:02:43.1]} 7... Nc6 {[%clk 0:02:58.8]} 8. Bf4 {[%clk 0:02:42.1]}
8... Bg7 {[%clk 0:02:59.4]} 9. Qe2 {[%clk 0:02:43.3]} 9... Qc7 {[%clk
0:02:45.6]} 10. Bb5 {[%clk 0:02:34.9]} 10... O-O {[%clk 0:02:44.8]} 11. Bxc6
{[%clk 0:02:32.4]} 11... Qxc6 {[%clk 0:02:44.8]} 12. h3 {[%clk 0:02:34.1]} 12...
Nh6 {[%clk 0:02:44.1]} 13. g4 {[%clk 0:02:35.7]} 13... f5 {[%clk 0:02:27]} 14.
Bxh6 {[%clk 0:02:32.4]} 14... fxg4 {[%clk 0:02:14.2]} 15. Bxg7 {[%clk 0:02:28]}
15... gxf3 {[%clk 0:02:14.6]} 16. Qe3 {[%clk 0:02:21.6]} 16... Kxg7 {[%clk
0:02:15.1]} 17. Nd2 {[%clk 0:02:22.8]} 17... Be6 {[%clk 0:02:08.6]} 18. h4
{[%clk 0:02:23.3]} 18... h5 {[%clk 0:02:08.4]} 19. Rg1 {[%clk 0:02:23.1]} 19...
Rad8 {[%clk 0:02:06.1]} 20. Qg5 {[%clk 0:02:18.5]} 20... Bf7 {[%clk 0:01:51.6]}
21. Qxh5 {[%clk 0:02:07.4]} 21... Rxd2 {[%clk 0:01:20.9]} 22. Kxd2 {[%clk
0:01:57.6]} 22... Qe4 {[%clk 0:01:14.7]} 23. Qg5 {[%clk 0:01:34.8]} 23... Rd8+
{[%clk 0:01:12.5]} 24. Kc1 {[%clk 0:01:35.2]} 24... Rd5 {[%clk 0:01:01.4]} 25.
Qe3 {[%clk 0:01:26.1]} 25... Qxe3+ {[%clk 0:00:58.5]} 26. fxe3 {[%clk
0:01:27.3]} 26... Rxe5 {[%clk 0:01:00.4]} 27. Kd2 {[%clk 0:01:19.7]} 27... Rd5+
{[%clk 0:01:01.2]} 28. Ke1 {[%clk 0:01:19.5]} 28... e5 {[%clk 0:01:00.8]} 29.
Kf2 {[%clk 0:01:18.9]} 29... e4 {[%clk 0:01:00.7]} 30. Rad1 {[%clk 0:01:20.4]}
30... Kf6 {[%clk 0:00:54.3]} 31. Rxd5 {[%clk 0:01:19.7]} 31... Bxd5 {[%clk
0:00:56.2]} 32. Rg5 {[%clk 0:01:21]} 32... Bxa2 {[%clk 0:00:55.5]} 33. Rxc5
{[%clk 0:01:21.4]} 33... Be6 {[%clk 0:00:55.9]} 34. Rc7 {[%clk 0:01:21.9]} 34...
Bd5 {[%clk 0:00:56.8]} 35. c4 {[%clk 0:01:21.9]} 35... Bc6 {[%clk 0:00:57.9]}
36. b4 {[%clk 0:01:23.2]} 36... a6 {[%clk 0:00:59.3]} 37. b5 {[%clk 0:01:17.7]}
37... axb5 {[%clk 0:01:00.1]} 38. cxb5 {[%clk 0:01:19.6]} 38... Bxb5 {[%clk
0:01:01.7]} 39. Rxb7 {[%clk 0:01:21.2]} 39... Bd3 {[%clk 0:01:01.2]} 40. Kg3
{[%clk 0:01:22.1]} 40... Kf5 {[%clk 0:00:59.8]} 41. Rf7+ {[%clk 0:01:21.1]}
41... Ke6 {[%clk 0:01:00.7]} 42. Rf4 {[%clk 0:01:21.7]} 42... Ke7 {[%clk
0:00:58.7]} 43. Kg4 {[%clk 0:01:23.2]} 43... Kd6 {[%clk 0:00:39.2]} 44. Kg5
{[%clk 0:01:22.2]} 44... Kc5 {[%clk 0:00:41.1]} 45. Kxg6 {[%clk 0:01:23]} 45...
Kc4 {[%clk 0:00:42.6]} 46. h5 {[%clk 0:01:24.5]} 46... Kc3 {[%clk 0:00:44.2]}
47. h6 {[%clk 0:01:25.9]} 47... Kd2 {[%clk 0:00:45.9]} 48. h7 {[%clk 0:01:27.4]}
48... Kxe3 {[%clk 0:00:47.3]} 49. Rf6 {[%clk 0:01:28.4]} 49... Ke2 {[%clk
0:00:45.8]} 50. h8=Q {[%clk 0:01:28.6]} 50... e3+ {[%clk 0:00:47.3]} 51. Kh6
{[%clk 0:01:28.9]} 51... f2 {[%clk 0:00:49.2]} 52. Qd8 {[%clk 0:01:25.9]} 52...
Kd2 {[%clk 0:00:46.3]} 53. Qd4 {[%clk 0:01:23.3]} 53... Ke2 {[%clk 0:00:41.5]}
54. Rf4 {[%clk 0:01:17.1]} 54... Kd2 {[%clk 0:00:36.4]} 55. Rf3 {[%clk
0:01:14.5]} 55... Kc2 {[%clk 0:00:26.8]} 56. Qxe3 {[%clk 0:01:11.9]} 56... f1=Q
{[%clk 0:00:26.6]} 57. Rxf1 {[%clk 0:01:12.9]} 57... Bxf1 {[%clk 0:00:27.9]} 58.
Qf2+ {[%clk 0:01:14.8]} 1-0

[Event "*** Titled Tuesday 3|2 Blitz"]
[Site "Chess.com"]
[Date "2016.10.04"]
[Round "7"]
[White "Hieronymus00"]
[Black "AndrewMcStone"]
[Result "1-0"]
[WhiteElo "2184"]
[BlackElo "2017"]
[TimeControl "180+2"]
[EndTime "12:26:40 PDT"]
[Termination "Hieronymus00 won on time"]

1. e4 {[%clk 0:03:02]} 1... e6 {[%clk 0:03:00.6]} 2. d4 {[%clk 0:03:02.4]} 2...
d5 {[%clk 0:03:01.8]} 3. Nc3 {[%clk 0:03:03.8]} 3... Nc6 {[%clk 0:03:02]} 4. e5
{[%clk 0:02:58.3]} 4... f6 {[%clk 0:03:02.2]} 5. Nf3 {[%clk 0:02:56.5]} 5... Bd7
{[%clk 0:02:54.8]} 6. Ne2 {[%clk 0:02:39.8]} 6... Qe7 {[%clk 0:02:47.3]} 7. c3
{[%clk 0:02:36.1]} 7... Qf7 {[%clk 0:02:46]} 8. Be3 {[%clk 0:02:29.3]} 8... Nge7
{[%clk 0:02:45.5]} 9. Qd2 {[%clk 0:02:28.8]} 9... Ng6 {[%clk 0:02:25.6]} 10.
exf6 {[%clk 0:02:22.8]} 10... gxf6 {[%clk 0:02:27.5]} 11. h4 {[%clk 0:02:20.6]}
11... Bd6 {[%clk 0:02:25.9]} 12. g3 {[%clk 0:02:16.4]} 12... O-O-O {[%clk
0:02:19.9]} 13. Bg2 {[%clk 0:02:12.7]} 13... Nge7 {[%clk 0:02:10.1]} 14. O-O-O
{[%clk 0:02:10.8]} 14... Nf5 {[%clk 0:01:56]} 15. Bf4 {[%clk 0:02:11.1]} 15...
Bxf4 {[%clk 0:01:46.4]} 16. Nxf4 {[%clk 0:02:07.5]} 16... Nd6 {[%clk 0:01:47.1]}
17. Kb1 {[%clk 0:02:02.9]} 17... Nc4 {[%clk 0:01:31.9]} 18. Qc2 {[%clk
0:01:58.3]} 18... Kb8 {[%clk 0:01:02.8]} 19. Ka1 {[%clk 0:01:58.8]} 19... Bc8
{[%clk 0:00:57.1]} 20. Nd3 {[%clk 0:01:55.9]} 20... e5 {[%clk 0:00:48.6]} 21.
Nc5 {[%clk 0:01:54.3]} 21... b6 {[%clk 0:00:43]} 22. Nb3 {[%clk 0:01:47.6]}
22... e4 {[%clk 0:00:39.2]} 23. Nfd2 {[%clk 0:01:48.2]} 23... Nd6 {[%clk
0:00:32.6]} 24. Rhe1 {[%clk 0:01:45.7]} 24... Rhg8 {[%clk 0:00:25.9]} 25. Rc1
{[%clk 0:01:38.6]} 25... Bf5 {[%clk 0:00:24.2]} 26. Re3 {[%clk 0:01:36.2]} 26...
Bg6 {[%clk 0:00:20.8]} 27. Qd1 {[%clk 0:01:21.5]} 27... a5 {[%clk 0:00:21.5]}
28. Rc2 {[%clk 0:01:07.8]} 28... a4 {[%clk 0:00:21.1]} 29. Nc1 {[%clk
0:01:08.6]} 29... Na5 {[%clk 0:00:22.5]} 30. b3 {[%clk 0:01:08.9]} 30... axb3
{[%clk 0:00:22.7]} 31. axb3 {[%clk 0:01:09.6]} 31... Kb7 {[%clk 0:00:23.6]} 32.
Ra2 {[%clk 0:01:10.6]} 32... Ra8 {[%clk 0:00:23.8]} 33. Kb2 {[%clk 0:01:08.6]}
33... Bh5 {[%clk 0:00:21.2]} 34. Qc2 {[%clk 0:01:08.4]} 34... Nc6 {[%clk
0:00:16.3]} 35. Qb1 {[%clk 0:01:06.2]} 35... Rxa2+ {[%clk 0:00:16.4]} 36. Qxa2
{[%clk 0:01:07.3]} 36... Ra8 {[%clk 0:00:18.3]} 37. Qb1 {[%clk 0:01:08.5]} 37...
Nf5 {[%clk 0:00:17.7]} 38. Re1 {[%clk 0:01:08.9]} 38... Qe7 {[%clk 0:00:17.6]}
39. b4 {[%clk 0:01:02.4]} 39... Nxb4 {[%clk 0:00:16.4]} 40. Nxe4 {[%clk
0:00:56.1]} 40... dxe4 {[%clk 0:00:04.1]} 41. Bxe4+ {[%clk 0:00:56.3]} 41... Kb8
{[%clk 0:00:04.7]} 42. Nb3 {[%clk 0:00:44.7]} 42... Ra2+ {[%clk 0:00:04]} 43.
Kc1 {[%clk 0:00:39.5]} 43... Qd6 {[%clk 0:00:03.3]} 44. Nd2 {[%clk 0:00:24.3]}
1-0

[Event "*** Titled Tuesday 3|2 Blitz"]
[Site "Chess.com"]
[Date "2016.10.04"]
[Round "7"]
[White "dabee"]
[Black "hansen"]
[Result "0-1"]
[WhiteElo "2472"]
[BlackElo "2631"]
[TimeControl "180+2"]
[EndTime "12:26:47 PDT"]
[Termination "hansen won on time"]

1. d4 {[%clk 0:03:00.6]} 1... Nf6 {[%clk 0:03:00.5]} 2. Bg5 {[%clk 0:03:00.4]}
2... d5 {[%clk 0:02:58.6]} 3. e3 {[%clk 0:02:58.5]} 3... Nbd7 {[%clk 0:02:58.8]}
4. Nf3 {[%clk 0:02:57.1]} 4... h6 {[%clk 0:02:49.4]} 5. Bf4 {[%clk 0:02:55]}
5... Nh5 {[%clk 0:02:49.7]} 6. Be5 {[%clk 0:02:53.2]} 6... Nxe5 {[%clk
0:02:50.1]} 7. Nxe5 {[%clk 0:02:50.2]} 7... Nf6 {[%clk 0:02:49.2]} 8. Bd3 {[%clk
0:02:50.7]} 8... e6 {[%clk 0:02:35.5]} 9. Nd2 {[%clk 0:02:48.3]} 9... Nd7 {[%clk
0:02:35.8]} 10. f4 {[%clk 0:02:41.5]} 10... c5 {[%clk 0:02:16.5]} 11. c3 {[%clk
0:02:25.5]} 11... Qb6 {[%clk 0:01:52.3]} 12. Rb1 {[%clk 0:02:22.5]} 12... Be7
{[%clk 0:01:40.2]} 13. O-O {[%clk 0:02:20.5]} 13... O-O {[%clk 0:01:35.3]} 14.
Ndf3 {[%clk 0:02:12.3]} 14... Nf6 {[%clk 0:01:33.8]} 15. g4 {[%clk 0:01:55.2]}
15... Ne4 {[%clk 0:01:33.4]} 16. Bxe4 {[%clk 0:01:52.3]} 16... dxe4 {[%clk
0:01:34.1]} 17. Nd2 {[%clk 0:01:53.2]} 17... f5 {[%clk 0:01:24.7]} 18. Ng6
{[%clk 0:01:40.3]} 18... Re8 {[%clk 0:01:07.5]} 19. Qa4 {[%clk 0:01:04.7]} 19...
Qc6 {[%clk 0:01:00.6]} 20. Qxc6 {[%clk 0:01:04]} 20... bxc6 {[%clk 0:01:02.5]}
21. Nxe7+ {[%clk 0:01:04.5]} 21... Rxe7 {[%clk 0:01:02.8]} 22. dxc5 {[%clk
0:00:55.1]} 22... Ba6 {[%clk 0:01:01.8]} 23. Rfe1 {[%clk 0:00:47.9]} 23... Bd3
{[%clk 0:00:51.8]} 24. Rbc1 {[%clk 0:00:40.7]} 24... fxg4 {[%clk 0:00:52.4]} 25.
Kf2 {[%clk 0:00:39]} 25... h5 {[%clk 0:00:47.1]} 26. Kg3 {[%clk 0:00:24.9]}
26... Kh7 {[%clk 0:00:47.8]} 27. Kh4 {[%clk 0:00:24.6]} 27... Kh6 {[%clk
0:00:46.4]} 28. Rg1 {[%clk 0:00:23.7]} 28... e5 {[%clk 0:00:42.2]} 29. fxe5
{[%clk 0:00:21.2]} 29... Rf8 {[%clk 0:00:35.3]} 30. Rgf1 {[%clk 0:00:16.6]}
30... Bxf1 {[%clk 0:00:34]} 31. Rxf1 {[%clk 0:00:12.7]} 31... Rxf1 {[%clk
0:00:32.7]} 32. Nxf1 {[%clk 0:00:12.9]} 32... Rxe5 {[%clk 0:00:32.7]} 33. b4
{[%clk 0:00:12.6]} 33... Rf5 {[%clk 0:00:32.9]} 34. Nd2 {[%clk 0:00:12.6]} 34...
Rf2 {[%clk 0:00:13.2]} 35. Nxe4 {[%clk 0:00:11.9]} 35... Rxh2+ {[%clk
0:00:12.1]} 36. Kg3 {[%clk 0:00:12.9]} 36... Rh3+ {[%clk 0:00:13.4]} 37. Kg2
{[%clk 0:00:12.5]} 37... Rxe3 {[%clk 0:00:14.6]} 38. Nd6 {[%clk 0:00:12.7]}
38... Kg5 {[%clk 0:00:14.6]} 39. c4 {[%clk 0:00:12.2]} 39... h4 {[%clk
0:00:15.3]} 40. b5 {[%clk 0:00:12.4]} 40... h3+ {[%clk 0:00:16.7]} 41. Kf2
{[%clk 0:00:13]} 41... Rf3+ {[%clk 0:00:16.1]} 42. Kg1 {[%clk 0:00:13.7]} 42...
g3 {[%clk 0:00:17.2]} 43. Ne4+ {[%clk 0:00:12.5]} 43... Kf4 {[%clk 0:00:17.9]}
0-1

[Event "*** Titled Tuesday 3|2 Blitz"]
[Site "Chess.com"]
[Date "2016.10.04"]
[Round "7"]
[White "TomsKantans"]
[Black "Blitzstream"]
[Result "0-1"]
[WhiteElo "2467"]
[BlackElo "2549"]
[TimeControl "180+2"]
[EndTime "12:26:59 PDT"]
[Termination "Blitzstream won by resignation"]

1. e4 {[%clk 0:03:00.2]} 1... d5 {[%clk 0:03:01.1]} 2. exd5 {[%clk 0:03:00.3]}
2... Qxd5 {[%clk 0:03:03]} 3. Nc3 {[%clk 0:03:01.1]} 3... Qa5 {[%clk 0:03:04]}
4. d4 {[%clk 0:03:02]} 4... Nf6 {[%clk 0:03:05.6]} 5. Nf3 {[%clk 0:03:02.8]}
5... c6 {[%clk 0:03:06.6]} 6. Bd2 {[%clk 0:03:03.4]} 6... Bf5 {[%clk 0:03:07.6]}
7. Bc4 {[%clk 0:03:03.1]} 7... e6 {[%clk 0:03:07]} 8. Qe2 {[%clk 0:02:46.3]}
8... Bb4 {[%clk 0:03:07.1]} 9. O-O-O {[%clk 0:02:44.9]} 9... Nbd7 {[%clk
0:03:07.5]} 10. Kb1 {[%clk 0:02:18]} 10... b5 {[%clk 0:03:05.8]} 11. Bb3 {[%clk
0:02:12.9]} 11... O-O {[%clk 0:03:03.2]} 12. Ne5 {[%clk 0:02:10]} 12... Nxe5
{[%clk 0:02:57.8]} 13. dxe5 {[%clk 0:02:11.9]} 13... Nd5 {[%clk 0:02:50.9]} 14.
Nxd5 {[%clk 0:02:12.9]} 14... cxd5 {[%clk 0:02:52.8]} 15. g4 {[%clk 0:02:13.6]}
15... Bg6 {[%clk 0:02:51.8]} 16. h4 {[%clk 0:02:14.7]} 16... Bxd2 {[%clk
0:02:49]} 17. Rxd2 {[%clk 0:02:16.6]} 17... h6 {[%clk 0:02:48.9]} 18. h5 {[%clk
0:02:16]} 18... Bh7 {[%clk 0:02:49]} 19. Rg1 {[%clk 0:02:15.1]} 19... Qb4 {[%clk
0:02:42.9]} 20. Qe3 {[%clk 0:02:07.2]} 20... Qe4 {[%clk 0:02:22.5]} 21. Qg3
{[%clk 0:02:08]} 21... g5 {[%clk 0:00:55.9]} 22. Ka1 {[%clk 0:01:30.3]} 22... a5
{[%clk 0:00:37.4]} 23. c3 {[%clk 0:01:30.8]} 23... f6 {[%clk 0:00:20.4]} 24.
exf6 {[%clk 0:01:28.8]} 24... Rxf6 {[%clk 0:00:22.2]} 25. Bc2 {[%clk 0:01:26]}
25... Qf4 {[%clk 0:00:23.2]} 26. Bxh7+ {[%clk 0:01:26.6]} 26... Kxh7 {[%clk
0:00:25.1]} 27. Qd3+ {[%clk 0:01:27.2]} 27... Kg7 {[%clk 0:00:24.8]} 28. Re1
{[%clk 0:01:23.3]} 28... b4 {[%clk 0:00:25.5]} 29. Rde2 {[%clk 0:01:22.2]} 29...
Re8 {[%clk 0:00:21.5]} 30. cxb4 {[%clk 0:01:05.1]} 30... axb4 {[%clk 0:00:22.3]}
31. Qb5 {[%clk 0:01:06.3]} 31... Re7 {[%clk 0:00:22.6]} 32. Qc5 {[%clk
0:01:01.5]} 32... Kf7 {[%clk 0:00:23.3]} 33. Rg1 {[%clk 0:00:54.4]} 33... Qc4
{[%clk 0:00:14.6]} 34. Qe3 {[%clk 0:00:20.5]} 34... Rc7 {[%clk 0:00:15.5]} 35.
Ree1 {[%clk 0:00:21.2]} 35... Qf4 {[%clk 0:00:11]} 36. Qd3 {[%clk 0:00:21.3]}
36... Kg7 {[%clk 0:00:10.9]} 37. f3 {[%clk 0:00:19.8]} 37... Qxf3 {[%clk
0:00:08.9]} 38. Qxf3 {[%clk 0:00:21.7]} 38... Rxf3 {[%clk 0:00:09.8]} 39. Rxe6
{[%clk 0:00:23.6]} 39... Rg3 {[%clk 0:00:09.5]} 40. Rg6+ {[%clk 0:00:24.1]}
40... Kh7 {[%clk 0:00:10.3]} 41. Rd1 {[%clk 0:00:24.8]} 41... Rxg4 {[%clk
0:00:11.2]} 42. a3 {[%clk 0:00:25.2]} 42... b3 {[%clk 0:00:12.6]} 43. Rb6 {[%clk
0:00:25.7]} 43... Rg3 {[%clk 0:00:13.2]} 44. Kb1 {[%clk 0:00:25.6]} 44... g4
{[%clk 0:00:12.2]} 45. a4 {[%clk 0:00:24.6]} 45... Rf3 {[%clk 0:00:13.3]} 46. a5
{[%clk 0:00:25.2]} 46... g3 {[%clk 0:00:14.8]} 47. a6 {[%clk 0:00:26.3]} 47...
g2 {[%clk 0:00:16.1]} 48. Rb7 {[%clk 0:00:26.2]} 48... Rxb7 {[%clk 0:00:17.4]}
49. axb7 {[%clk 0:00:27]} 49... Rf1 {[%clk 0:00:19.1]} 0-1

[Event "*** Titled Tuesday 3|2 Blitz"]
[Site "Chess.com"]
[Date "2016.10.04"]
[Round "7"]
[White "VSERGUEI"]
[Black "APL2001"]
[Result "1-0"]
[WhiteElo "2560"]
[BlackElo "2433"]
[TimeControl "180+2"]
[EndTime "12:27:22 PDT"]
[Termination "VSERGUEI won by resignation"]

1. d4 {[%clk 0:03:01.9]} 1... Nf6 {[%clk 0:03:00.5]} 2. c4 {[%clk 0:03:02.3]}
2... g6 {[%clk 0:03:01.9]} 3. Nc3 {[%clk 0:03:03.2]} 3... Bg7 {[%clk 0:03:03]}
4. e4 {[%clk 0:03:03.9]} 4... d6 {[%clk 0:03:04.5]} 5. Be2 {[%clk 0:03:05]} 5...
O-O {[%clk 0:03:05.2]} 6. Nf3 {[%clk 0:03:06.1]} 6... e5 {[%clk 0:03:05.8]} 7.
Be3 {[%clk 0:03:07.2]} 7... Ng4 {[%clk 0:02:57.9]} 8. Bg5 {[%clk 0:03:07.2]}
8... f6 {[%clk 0:02:59.4]} 9. Bh4 {[%clk 0:03:07.8]} 9... Nc6 {[%clk 0:03:00.7]}
10. d5 {[%clk 0:03:08.4]} 10... Ne7 {[%clk 0:03:01.4]} 11. Nd2 {[%clk
0:03:09.3]} 11... Nh6 {[%clk 0:02:48.6]} 12. f3 {[%clk 0:03:08.9]} 12... f5
{[%clk 0:02:45.1]} 13. Qc2 {[%clk 0:03:03.7]} 13... f4 {[%clk 0:02:43.6]} 14.
O-O-O {[%clk 0:03:01.3]} 14... Bd7 {[%clk 0:02:40.8]} 15. Kb1 {[%clk 0:03:02]}
15... Nf7 {[%clk 0:02:30.5]} 16. Bf2 {[%clk 0:02:59.5]} 16... c6 {[%clk
0:02:28.4]} 17. Qb3 {[%clk 0:02:45]} 17... Qc7 {[%clk 0:02:22]} 18. c5 {[%clk
0:02:39]} 18... cxd5 {[%clk 0:01:54.3]} 19. cxd6 {[%clk 0:02:34.5]} 19... Qxd6
{[%clk 0:01:49.9]} 20. exd5 {[%clk 0:02:33.4]} 20... Bf5+ {[%clk 0:01:38.3]} 21.
Ka1 {[%clk 0:02:32.9]} 21... Rfd8 {[%clk 0:01:35.9]} 22. Nc4 {[%clk 0:02:22.9]}
22... Qd7 {[%clk 0:01:32.4]} 23. g4 {[%clk 0:02:15.2]} 23... fxg3 {[%clk
0:01:30.2]} 24. hxg3 {[%clk 0:02:15.6]} 24... b5 {[%clk 0:01:22]} 25. Na5 {[%clk
0:02:04.8]} 25... b4 {[%clk 0:01:15]} 26. Qxb4 {[%clk 0:02:04.5]} 26... Nd6
{[%clk 0:01:07.6]} 27. g4 {[%clk 0:01:56.8]} 27... Bc2 {[%clk 0:01:06.5]} 28.
Rd2 {[%clk 0:01:53.1]} 28... Rab8 {[%clk 0:01:06.8]} 29. Qa3 {[%clk 0:01:50.8]}
29... e4 {[%clk 0:00:37.1]} 30. Rxc2 {[%clk 0:01:49.8]} 30... exf3 {[%clk
0:00:38.4]} 31. Bxf3 {[%clk 0:01:46]} 31... Rf8 {[%clk 0:00:39.6]} 32. Bg2
{[%clk 0:01:42.3]} 32... Qxg4 {[%clk 0:00:37.6]} 33. Bc5 {[%clk 0:01:31.3]}
33... Nef5 {[%clk 0:00:24.8]} 34. Bxd6 {[%clk 0:01:28.2]} 34... Nxd6 {[%clk
0:00:26]} 35. Qxd6 {[%clk 0:01:26]} 35... Bxc3 {[%clk 0:00:19]} 36. bxc3 {[%clk
0:01:23.3]} 36... Qa4 {[%clk 0:00:20.4]} 37. Qe6+ {[%clk 0:01:08.9]} 37... Kg7
{[%clk 0:00:19.3]} 38. Qe7+ {[%clk 0:01:05.6]} 38... Rf7 {[%clk 0:00:20.7]} 39.
Rxh7+ {[%clk 0:01:05.4]} 39... Kxh7 {[%clk 0:00:20.7]} 40. Qxf7+ {[%clk
0:01:06.2]} 40... Kh6 {[%clk 0:00:22.2]} 41. Qf2 {[%clk 0:00:49.5]} 41... Qxa5
{[%clk 0:00:22.6]} 42. Qf4+ {[%clk 0:00:49.1]} 42... Kg7 {[%clk 0:00:22.1]} 43.
Qxb8 {[%clk 0:00:49.5]} 43... Qc5 {[%clk 0:00:23.8]} 44. Qb7+ {[%clk 0:00:44.7]}
44... Kh6 {[%clk 0:00:24.6]} 45. Qb4 {[%clk 0:00:44.6]} 45... Qg1+ {[%clk
0:00:25.4]} 46. Kb2 {[%clk 0:00:44.9]} 46... a5 {[%clk 0:00:27.1]} 47. Qh4+
{[%clk 0:00:43.8]} 47... Kg7 {[%clk 0:00:28.3]} 48. Qe7+ {[%clk 0:00:44.6]}
48... Kh6 {[%clk 0:00:29.5]} 49. Qd6 {[%clk 0:00:34.3]} 49... a4 {[%clk
0:00:29.4]} 50. Qb4 {[%clk 0:00:34.2]} 50... a3+ {[%clk 0:00:30.7]} 51. Qxa3
{[%clk 0:00:34.2]} 51... Qb6+ {[%clk 0:00:31.4]} 52. Qb4 {[%clk 0:00:35.2]}
52... Qg1 {[%clk 0:00:33.3]} 53. a3 {[%clk 0:00:36.1]} 53... Kg7 {[%clk
0:00:33.7]} 54. d6 {[%clk 0:00:36.8]} 54... Kh6 {[%clk 0:00:34.1]} 55. a4 {[%clk
0:00:37.7]} 55... Kg7 {[%clk 0:00:35.2]} 56. a5 {[%clk 0:00:38.9]} 56... Kh6
{[%clk 0:00:37]} 57. d7 {[%clk 0:00:38.9]} 57... Kg7 {[%clk 0:00:38.7]} 58. d8=Q
{[%clk 0:00:37.4]} 58... Kh6 {[%clk 0:00:40.4]} 59. Qdh4+ {[%clk 0:00:37.3]}
59... Kg7 {[%clk 0:00:41.7]} 60. Qhd4+ {[%clk 0:00:38.3]} 1-0

[Event "*** Titled Tuesday 3|2 Blitz"]
[Site "Chess.com"]
[Date "2016.10.04"]
[Round "7"]
[White "josiwales"]
[Black "Malev212"]
[Result "1/2-1/2"]
[WhiteElo "2226"]
[BlackElo "2343"]
[TimeControl "180+2"]
[EndTime "12:27:27 PDT"]
[Termination "Game drawn by agreement"]

1. e4 {[%clk 0:03:02]} 1... c5 {[%clk 0:03:00.5]} 2. Nc3 {[%clk 0:03:02.7]} 2...
a6 {[%clk 0:02:56.9]} 3. g3 {[%clk 0:03:03.7]} 3... b5 {[%clk 0:02:56.8]} 4. Bg2
{[%clk 0:03:00.1]} 4... Bb7 {[%clk 0:02:58.2]} 5. d3 {[%clk 0:03:01.5]} 5... e6
{[%clk 0:02:59.1]} 6. f4 {[%clk 0:03:02.1]} 6... d6 {[%clk 0:02:58.4]} 7. Nh3
{[%clk 0:03:02.8]} 7... Nd7 {[%clk 0:02:59]} 8. O-O {[%clk 0:03:02.6]} 8... Ngf6
{[%clk 0:02:54.4]} 9. g4 {[%clk 0:03:00.3]} 9... b4 {[%clk 0:02:54.2]} 10. Na4
{[%clk 0:02:55.6]} 10... h6 {[%clk 0:02:45.7]} 11. b3 {[%clk 0:02:53.5]} 11...
Be7 {[%clk 0:02:28.9]} 12. Bb2 {[%clk 0:02:53.5]} 12... Qc7 {[%clk 0:02:28.4]}
13. Qf3 {[%clk 0:02:30]} 13... O-O-O {[%clk 0:02:20.2]} 14. g5 {[%clk
0:02:29.2]} 14... hxg5 {[%clk 0:02:18.2]} 15. fxg5 {[%clk 0:02:28.8]} 15... Nh7
{[%clk 0:02:08.2]} 16. Qxf7 {[%clk 0:02:24.5]} 16... Nxg5 {[%clk 0:02:06.6]} 17.
Qxe7 {[%clk 0:02:01.1]} 17... Nxh3+ {[%clk 0:02:06.4]} 18. Bxh3 {[%clk
0:02:02.5]} 18... Rxh3 {[%clk 0:02:06.1]} 19. Qxe6 {[%clk 0:02:03.9]} 19... Rh6
{[%clk 0:01:58.4]} 20. Qg4 {[%clk 0:01:56.5]} 20... Kb8 {[%clk 0:01:51.2]} 21.
Bxg7 {[%clk 0:01:54.2]} 21... Rg8 {[%clk 0:01:46]} 22. Rf7 {[%clk 0:01:54.1]}
22... Ne5 {[%clk 0:01:40.6]} 23. Rxc7 {[%clk 0:01:52.6]} 23... Nxg4 {[%clk
0:01:41.4]} 24. Rxb7+ {[%clk 0:01:47.1]} 24... Kxb7 {[%clk 0:01:41.3]} 25. Bxh6
{[%clk 0:01:48.4]} 25... Nxh6+ {[%clk 0:01:41.9]} 26. Kf2 {[%clk 0:01:48.5]}
26... Ng4+ {[%clk 0:01:42.3]} 27. Kg3 {[%clk 0:01:32.4]} 27... Ne3+ {[%clk
0:01:42.2]} 28. Kf4 {[%clk 0:01:33.6]} 28... Nxc2 {[%clk 0:01:42.6]} 29. Rc1
{[%clk 0:01:32.2]} 29... Nd4 {[%clk 0:01:37.7]} 30. Rc4 {[%clk 0:01:25]} 30...
Rg2 {[%clk 0:01:33.6]} 31. e5 {[%clk 0:01:25.2]} 31... Rf2+ {[%clk 0:01:26.6]}
32. Kg3 {[%clk 0:01:22.5]} 32... Rf3+ {[%clk 0:01:19]} 33. Kg4 {[%clk
0:01:20.4]} 33... Rxd3 {[%clk 0:01:14]} 34. exd6 {[%clk 0:01:21.6]} 34... Ne6
{[%clk 0:01:14.8]} 35. Nxc5+ {[%clk 0:01:15.3]} 35... Nxc5 {[%clk 0:01:14.8]}
36. Rxc5 {[%clk 0:01:17.2]} 36... Rxd6 {[%clk 0:01:16.1]} 37. h4 {[%clk
0:01:12]} 37... Rd2 {[%clk 0:01:15.9]} 38. h5 {[%clk 0:01:09.9]} 38... Rxa2
{[%clk 0:01:11.6]} 39. h6 {[%clk 0:01:11.3]} 39... Rg2+ {[%clk 0:01:08.3]} 40.
Kh3 {[%clk 0:01:12.3]} 40... Rg8 {[%clk 0:01:04.6]} 41. Rf5 {[%clk 0:01:05.5]}
41... Rh8 {[%clk 0:01:02.4]} 42. Rf6 {[%clk 0:01:03.8]} 42... a5 {[%clk
0:01:03.1]} 43. Kg4 {[%clk 0:01:04.4]} 43... a4 {[%clk 0:01:04]} 44. bxa4 {[%clk
0:01:04]} 44... b3 {[%clk 0:01:04.9]} 45. Kg5 {[%clk 0:01:04.8]} 45... Rg8+
{[%clk 0:01:05.1]} 46. Kh5 {[%clk 0:00:58.3]} 46... b2 {[%clk 0:01:01.8]} 47.
Rf1 {[%clk 0:00:58.1]} 47... Rg2 {[%clk 0:01:02.4]} 48. h7 {[%clk 0:00:51.6]}
48... Rh2+ {[%clk 0:01:02]} 49. Kg6 {[%clk 0:00:52.8]} 49... Ka6 {[%clk
0:01:01.9]} 50. Rb1 {[%clk 0:00:52]} 50... Rg2+ {[%clk 0:01:02.4]} 51. Kh6
{[%clk 0:00:46.9]} 51... Rh2+ {[%clk 0:01:03.2]} 52. Kg6 {[%clk 0:00:46.2]}
52... Rg2+ {[%clk 0:01:04.2]} 53. Kf6 {[%clk 0:00:47.2]} 53... Rf2+ {[%clk
0:01:04.2]} 54. Kg5 {[%clk 0:00:43.6]} 54... Rh2 {[%clk 0:01:04.2]} 55. Kg6
{[%clk 0:00:35.4]} 55... Rg2+ {[%clk 0:01:04.6]} 56. Kh6 {[%clk 0:00:36.5]}
56... Rh2+ {[%clk 0:01:05.4]} 57. Kg7 {[%clk 0:00:35.8]} 57... Rg2+ {[%clk
0:01:06.3]} 58. Kf6 {[%clk 0:00:17.1]} 58... Rh2 {[%clk 0:01:06.5]} 59. Rxb2
{[%clk 0:00:16.4]} 59... Rxh7 {[%clk 0:01:05.7]} 60. Ke5 {[%clk 0:00:16.2]}
60... Rb7 {[%clk 0:01:05.8]} 61. Ra2 {[%clk 0:00:15.4]} 61... Rd7 {[%clk
0:01:06.2]} 62. Ke6 {[%clk 0:00:16.4]} 62... Rd1 {[%clk 0:01:06.6]} 63. a5
{[%clk 0:00:17.7]} 63... Rb1 {[%clk 0:01:05]} 64. Kd6 {[%clk 0:00:17.9]} 64...
Rb5 {[%clk 0:01:06.5]} 65. Kc6 {[%clk 0:00:19.3]} 65... Rxa5 {[%clk 0:01:07.1]}
66. Rb2 {[%clk 0:00:20.7]} 66... Ra1 {[%clk 0:01:07.2]} 67. Rb6+ {[%clk
0:00:21.9]} 67... Ka5 {[%clk 0:01:07.3]} 68. Rb5+ {[%clk 0:00:19.1]} 68... Ka4
{[%clk 0:01:08]} 69. Rb8 {[%clk 0:00:20.3]} 69... Rc1+ {[%clk 0:01:08.5]} 70.
Kd5 {[%clk 0:00:21.8]} 70... Rh1 {[%clk 0:01:07.6]} 71. Kc4 {[%clk 0:00:22.1]}
1/2-1/2